fUSD/lending_fUSD_20241225
["ID","MTS","AMOUNT","RATE_DAILY","PERIOD"]
[346565743,1735096238105,-500.0,0.00012953,2]
[346565744,1735096238114,-9126.20776014,0.00012953,2]
[346565745,1735096238124,-120346.59663447,0.00012954,2]
[346565746,1735096238225,-1027.90064709,0.00012954,2]
[346565747,1735096238238,-358.16823312,0.00012954,2]
[346565748,1735096238467,-6835.73724422,0.00012954,2]
[346565749,1735096238478,-833.69583873,0.00012954,2]
[346565750,1735096238491,-792.58760472,0.00012954,2]
[346565751,1735096238503,-1271.09,0.00012954,2]
[346565752,1735096238514,-769.96443153,0.00012954,2]
[346565753,1735096238525,-292.04521374,0.00012954,2]
[346565754,1735096238718,-355.72,0.00012954,2]
[346565756,1735096238730,-7527.80749218,0.00012954,2]
[346565758,1735096238741,-1139.99044052,0.00012954,2]
[346565874,1735096240283,-635.50022317,0.00012953,2]
[346565875,1735096240529,-3.93977683,0.00012953,2]
[346565876,1735096240539,-2995.23602972,0.00012954,2]
[346565877,1735096240552,-306.6732093,0.00012954,2]
[346565878,1735096240745,-124141.87275842,0.00012954,2]
[346565879,1735096240755,-3266.34,0.00012954,2]
[346565880,1735096240764,-500.0,0.00012954,2]
[346565881,1735096240773,-1722.18,0.00012954,2]
[346565882,1735096240782,-5600.98,0.00012954,2]
[346565883,1735096240791,-20356.6,0.00012954,2]
[346565884,1735096240802,-3654.75,0.00012954,2]
[346565885,1735096240811,-2472.66,0.00012954,2]
[346565886,1735096240820,-155.506852,0.00012954,2]
[346565887,1735096240829,-156.473705,0.00012954,2]
[346565888,1735096240838,-2891.718013,0.00012954,2]
[346565889,1735096240847,-8743.14,0.00012954,2]
[346565890,1735096240856,-2956.788376,0.00012954,2]
[346565891,1735096240866,-4771.11,0.00012954,2]
[346565892,1735096240875,-4312.07,0.00012954,2]
[346565893,1735096240883,-3187.85,0.00012954,2]
[346565894,1735096240892,-2356.43182272,0.00012954,2]
[346565897,1735096243160,-153.0,0.00012781,2]
[346565898,1735096243169,-153.0,0.00012781,2]
[346565899,1735096243179,-153.0,0.00012781,2]
[346565900,1735096243188,-153.0,0.00012781,2]
[346565901,1735096243198,-153.0,0.00012781,2]
[346565902,1735096243208,-5572.37817728,0.00012954,2]
[346565903,1735096243217,-2334.33,0.00012954,2]
[346565904,1735096243227,-2208.46,0.00012954,2]
[346565905,1735096243236,-16206.56120254,0.00012954,2]
[346565906,1735096243379,-10473.70879746,0.00012954,2]
[346565907,1735096243389,-2370.15,0.00012954,2]
[346565908,1735096243399,-1109.86,0.00012954,2]
[346565909,1735096243408,-4857.47,0.00012954,2]
[346565910,1735096243419,-500.0,0.00012954,2]
[346565911,1735096243429,-30527.28,0.00012954,2]
[346565912,1735096243439,-7488.83,0.00012954,2]
[346565913,1735096243448,-500.0,0.00012954,2]
[346565914,1735096243459,-7924.98,0.00012954,2]
[346565915,1735096243468,-2756.62,0.00012954,2]
[346565916,1735096243478,-1619.8,0.00012954,2]
[346565917,1735096243487,-1822.2,0.00012954,2]
[346565918,1735096243499,-2457.39,0.00012954,2]
[346565919,1735096243509,-25738.0,0.00012954,2]
[346565920,1735096243518,-5177.32,0.00012954,2]
[346565921,1735096243528,-4900.01,0.00012954,2]
[346565922,1735096243539,-3825.72,0.00012954,2]
[346565923,1735096243549,-5341.26,0.00012954,2]
[346565924,1735096243559,-5504.18,0.00012954,2]
[346565925,1735096243568,-7519.88,0.00012954,2]
[346565926,1735096243578,-13440.93,0.00012954,2]
[346565927,1735096243587,-8383.52,0.00012954,2]
[346565928,1735096243597,-2670.91,0.00012954,2]
[346565929,1735096243607,-3341.39,0.00012954,2]
[346565930,1735096243617,-3617.69,0.00012954,2]
[346565931,1735096243626,-10299.67,0.00012954,2]
[346565932,1735096243635,-10175.24,0.00012954,2]
[346565934,1735096243644,-23359.76,0.00012954,2]
[346565936,1735096243654,-1505.822646,0.00012954,2]
[346565938,1735096243663,-1505.822646,0.00012954,2]
[346565940,1735096243673,-1505.822646,0.00012954,2]
[346565941,1735096243682,-1505.822646,0.00012954,2]
[346565942,1735096243691,-5235.07,0.00012954,2]
[346565943,1735096243701,-1507.44100541,0.00012954,2]
[346565944,1735096243713,-500.57827625,0.00012954,2]
[346565945,1735096243725,-878.00071834,0.00012954,2]
[346565946,1735096243735,-3075.81855621,0.00012954,2]
[346565947,1735096243746,-699.5899999,0.00012954,2]
[346565948,1735096243758,-424.49932413,0.00012954,2]
[346565949,1735096243769,-2721.28325512,0.00012954,2]
[346565951,1735096246350,-153.0,0.00012781,2]
[346565952,1735096246360,-153.0,0.00012781,2]
[346565953,1735096246369,-153.0,0.00012781,2]
[346565954,1735096246379,-153.0,0.00012781,2]
[346565955,1735096246388,-153.0,0.00012781,2]
[346565956,1735096246398,-153.0,0.00012781,2]
[346565957,1735096246407,-153.0,0.00012781,2]
[346565958,1735096246418,-153.0,0.00012781,2]
[346565959,1735096246431,-153.0,0.00012781,2]
[346565960,1735096246441,-153.0,0.00012781,2]
[346565961,1735096246450,-153.0,0.00012781,2]
[346565962,1735096246460,-2864.20477888,0.00012954,2]
[346565963,1735096246473,-612.5672614,0.00012954,2]
[346565964,1735096246598,-7863.96463729,0.00012954,2]
[346565967,1735096246610,-1138.28203649,0.00012954,2]
[346565969,1735096246622,-1199.4,0.00012954,2]
[346566038,1735097432335,-701.01,0.00010001,2]
[346566039,1735097432344,-155.96,0.00010137,2]
[346566040,1735097432354,-142.1396,0.00010369,2]
[346566041,1735097432365,-503.1,0.00010369,2]
[346566042,1735097432376,-854.7604,0.00010369,2]
[346566043,1735097432385,-138.0796,0.00010436,2]
[346566044,1735097432396,-66.04559837,0.00010436,2]
[346566045,1735097432406,-6537.0823606,0.00011,2]
[346566046,1735097432471,-5373.4359665,0.00011,2]
[346566064,1735097438377,-618.49444355,0.00011,2]
[346566065,1735097438388,-3764.8321087,0.00011,2]
[346566066,1735097438399,-2557.96250393,0.00011,2]
[346566067,1735097438410,-4380.04181248,0.00011,2]
[346566068,1735097438420,-990.96111908,0.00011602,2]
[346566069,1735097438526,-9.03888092,0.00011602,2]
[346566070,1735097438536,-250.0,0.00011626,2]
[346566071,1735097438545,-250.0,0.00011675,2]
[346566072,1735097438554,-250.0,0.00011715,2]
[346566073,1735097438563,-950.62,0.00011803,2]
[346566074,1735097438572,-398.63,0.00011849,2]
[346566075,1735097438581,-859.16,0.00011913,2]
[346566076,1735097438592,-16.15764355,0.00011993,2]
[346566077,1735097438603,-184.75235645,0.00011993,2]
[346566078,1735097438612,-201.66,0.00011993,2]
[346566079,1735097438621,-203.52,0.00011993,2]
[346566080,1735097438630,-200.16,0.00011993,2]
[346566081,1735097438639,-202.11,0.00011993,2]
[346566082,1735097438647,-202.08,0.00011993,2]
[346566083,1735097438656,-200.33,0.00011993,2]
[346566085,1735097438666,-200.73,0.00011993,2]
[346566086,1735097438675,-152.478756,0.0001226,2]
[346566087,1735097438684,-701.01,0.00012265,2]
[346566088,1735097438693,-1057.0,0.000123,2]
[346566089,1735097438703,-343.162,0.0001231,2]
[346566090,1735097438712,-151.5,0.00012378,2]
[346566091,1735097438720,-436.09,0.00012378,2]
[346566092,1735097438729,-201.88,0.00012409,2]
[346566093,1735097438738,-202.01,0.00012521,2]
[346566094,1735097438747,-10893.0,0.00012567,2]
[346566095,1735097438756,-436.48,0.00012578,2]
[346566096,1735097438765,-436.48,0.00012578,2]
[346566097,1735097438777,-779.26,0.00012614,2]
[346566098,1735097438787,-755.54,0.00012614,2]
[346566099,1735097438795,-582.16,0.00012614,2]
[346566100,1735097438804,-769.82,0.00012614,2]
[346566101,1735097438814,-48873.0,0.000127,2]
[346566102,1735097438824,-153.0,0.00012794,2]
[346566103,1735097438833,-153.0,0.00012794,2]
[346566104,1735097438842,-153.0,0.00012794,2]
[346566105,1735097438854,-153.0,0.00012794,2]
[346566106,1735097438863,-153.0,0.00012794,2]
[346566107,1735097438872,-153.0,0.00012794,2]
[346566108,1735097438881,-153.0,0.00012794,2]
[346566109,1735097438890,-153.0,0.00012794,2]
[346566110,1735097438899,-153.0,0.00012794,2]
[346566111,1735097438908,-10563.549,0.00012795,2]
[346566112,1735097438917,-5655.3064,0.00012853,2]
[346566113,1735097438926,-186.23867854,0.00012853,2]
[346566114,1735097438935,-186.23867853,0.00012877,2]
[346566115,1735097438944,-947.60680471,0.00012884,2]
[346566116,1735097438954,-947.60680471,0.00012889,2]
[346566117,1735097438964,-947.60680471,0.00012895,2]
[346566118,1735097438973,-45265.1223438,0.000129,2]
[346566119,1735097438983,-3903.0,0.000129,2]
[346566120,1735097438992,-186.23867853,0.000129,2]
[346566121,1735097439001,-947.60680471,0.000129,2]
[346566122,1735097439013,-4561.95458064,0.000129,2]
[346566123,1735097439023,-645.668,0.00012914,2]
[346566124,1735097439043,-3112.08,0.00012914,2]
[346566125,1735097439060,-2137.27,0.00012914,2]
[346566126,1735097439079,-4677.21,0.00012914,2]
[346566127,1735097439098,-3578.46391146,0.00012914,2]
[346566128,1735097440803,-3436.75387545,0.00012914,2]
[346566129,1735097440815,-643.87221309,0.00012914,2]
[346566130,1735097440824,-4335.3,0.00012914,2]
[346566131,1735097440833,-4995.27,0.00012914,2]
[346566132,1735097440843,-3959.36369016,0.00012914,2]
[346566133,1735097440855,-777.12919889,0.00012914,2]
[346566135,1735097443282,-2326.1897417,0.00012914,2]
[346566136,1735097443421,-203.59736925,0.00012914,2]
[346566137,1735097443431,-5578.96,0.00012914,2]
[346566138,1735097443440,-621.48,0.00012914,2]
[346566139,1735097443450,-745.73,0.00012914,2]
[346566140,1735097443459,-3230.28,0.00012914,2]
[346566141,1735097443468,-500.0,0.00012914,2]
[346566142,1735097443477,-1190.3,0.00012914,2]
[346566143,1735097443487,-830.16,0.00012914,2]
[346566144,1735097443496,-500.0,0.00012914,2]
[346566145,1735097443505,-294.91682692,0.00012914,2]
[346566146,1735097443559,-205.08317308,0.00012914,2]
[346566148,1735097443569,-500.0,0.00012914,2]
[346566150,1735097443578,-524.2435297,0.00012914,2]
[346566153,1735097443589,-379.500005,0.00012914,2]
[346566155,1735097443600,-313.8764653,0.00012914,2]
[346566157,1735097443609,-227.01762668,0.00012914,2]
[346566159,1735097443620,-842.51237332,0.00012914,2]
[346566161,1735097443629,-287.09544324,0.00012914,2]
[346566163,1735097443640,-312.65249985,0.00012914,2]
[346566445,1735097446399,-571.70000274,0.00012914,2]
[346566447,1735097446411,-385.0,0.00012914,2]
[346566450,1735097446423,-21445.47205417,0.00012914,2]
[346566452,1735097446432,-500.0,0.00012914,2]
[346566454,1735097446441,-1277.72,0.00012914,2]
[346566456,1735097446451,-500.0,0.00012914,2]
[346566458,1735097446460,-447.47835747,0.00012914,2]
[346566459,1735097446470,-637.57,0.00012914,2]
[346566461,1735097446479,-2643.64,0.00012914,2]
[346566463,1735097446488,-1089.65155387,0.00012914,2]
[346566465,1735097446497,-202.77,0.00012914,2]
[346566467,1735097446507,-150.68,0.00012943,2]
[346566469,1735097446517,-1063.62,0.00012949,2]
[346566471,1735097446526,-1573.15,0.00012949,2]
[346566474,1735097446537,-24837.28,0.00012949,2]
[346566495,1735097446732,-5173.23,0.00012949,2]
[346566499,1735097446758,-13100.95,0.00012949,2]
[346566501,1735097446767,-3509.6,0.00012949,2]
[346566503,1735097446782,-10004.42,0.00012949,2]
[346566505,1735097446791,-1096.09,0.00012949,2]
[346566507,1735097446801,-3178.91,0.00012949,2]
[346566509,1735097446810,-4599.64,0.0001295,2]
[346566511,1735097446821,-1969.47,0.0001295,2]
[346566513,1735097446831,-500.0,0.0001295,2]
[346566515,1735097446840,-500.0,0.0001295,2]
[346566517,1735097446854,-968.57,0.0001295,2]
[346566519,1735097446872,-5450.02,0.0001295,2]
[346566521,1735097446884,-19655.98,0.0001295,2]
[346566523,1735097446895,-3551.01,0.0001295,2]
[346566525,1735097446905,-2405.26,0.0001295,2]
[346566527,1735097446916,-8532.17,0.0001295,2]
[346566529,1735097446926,-4657.97,0.0001295,2]
[346566531,1735097446937,-156.473705,0.0001295,2]
[346566533,1735097446948,-2771.229763,0.0001295,2]
[346566535,1735097446958,-4178.98,0.0001295,2]
[346566537,1735097446967,-2833.58886,0.0001295,2]
[346566539,1735097446976,-2295.22,0.0001295,2]
[346566541,1735097446986,-7692.19,0.0001295,2]
[346566543,1735097446995,-4725.66,0.0001295,2]
[346566545,1735097447004,-1212.208116,0.0001295,2]
[346566547,1735097447015,-25728.35,0.0001295,2]
[346566549,1735097447024,-1212.208116,0.0001295,2]
[346566551,1735097447036,-331.773286,0.0001295,2]
[346566553,1735097447045,-331.773286,0.0001295,2]
[346566555,1735097447055,-500.0,0.0001295,2]
[346566557,1735097447065,-29387.33,0.0001295,2]
[346566559,1735097447074,-155.506852,0.0001295,2]
[346566561,1735097447084,-2379.45,0.0001295,2]
[346566563,1735097447093,-2662.59,0.0001295,2]
[346566565,1735097447103,-4731.07,0.0001295,2]
[346566567,1735097447112,-5274.84,0.0001295,2]
[346566569,1735097447121,-151.0,0.0001295,2]
[346566571,1735097447131,-3695.7,0.0001295,2]
[346566573,1735097447140,-151.0,0.0001295,2]
[346566575,1735097447150,-151.0,0.0001295,2]
[346566577,1735097447159,-1906.29406302,0.0001295,2]
[346566641,1735097447756,-1379.45593698,0.0001295,2]
[346566643,1735097447766,-8094.91,0.0001295,2]
[346566645,1735097447781,-9823.74,0.0001295,2]
[346566647,1735097447790,-5051.15,0.0001295,2]
[346566649,1735097447799,-500.0,0.0001295,2]
[346566651,1735097447809,-23795.02,0.0001295,2]
[346566653,1735097447819,-16162.11,0.0001295,2]
[346566655,1735097447828,-151.0,0.0001295,2]
[346566657,1735097447838,-151.0,0.0001295,2]
[346566659,1735097447849,-151.0,0.0001295,2]
[346566661,1735097447859,-1586.39,0.0001295,2]
[346566663,1735097447868,-4684.08,0.0001295,2]
[346566665,1735097447878,-167.902061,0.0001295,2]
[346566667,1735097447887,-7124.03,0.0001295,2]
[346566669,1735097447897,-75061.70089704,0.00012951,2]
[346566671,1735097447910,-745.7939672,0.00012951,2]
[346566678,1735097447961,-2086.92900396,0.00012951,2]
[346566680,1735097447974,-9823.3,0.00012951,2]
[346566682,1735097447987,-290.45624452,0.00012951,2]
[346566684,1735097447999,-73023.10547428,0.00012951,2]
[346566686,1735097448010,-4563.10388006,0.00012951,2]
[346566688,1735097448023,-501.62933542,0.00012951,2]
[346566690,1735097448033,-500.0,0.00012951,2]
[346566692,1735097448047,-1364.61,0.00012951,2]
[346566694,1735097448057,-501.40096854,0.00012951,2]
[346566696,1735097448067,-500.0,0.00012951,2]
[346566698,1735097448078,-457.3898499,0.00012951,2]
[346566700,1735097448088,-500.0,0.00012951,2]
[346566702,1735097448099,-500.0,0.00012951,2]
[346566704,1735097448109,-500.0,0.00012951,2]
[346566706,1735097448119,-851.19,0.00012951,2]
[346566708,1735097448129,-500.0,0.00012951,2]
[346566710,1735097448139,-500.0,0.00012951,2]
[346566712,1735097448150,-1172.79,0.00012951,2]
[346566715,1735097448160,-500.0,0.00012951,2]
[346566716,1735097448169,-2010.69,0.00012951,2]
[346566719,1735097448179,-500.0,0.00012951,2]
[346566721,1735097448189,-500.0,0.00012951,2]
[346566722,1735097448198,-590.69,0.00012951,2]
[346566724,1735097448208,-500.0,0.00012951,2]
[346566726,1735097448218,-500.0,0.00012951,2]
[346566728,1735097448228,-1256.99,0.00012951,2]
[346566730,1735097448238,-500.0,0.00012951,2]
[346566732,1735097448247,-3148.34,0.00012951,2]
[346566734,1735097448257,-1854.29,0.00012951,2]
[346566736,1735097448266,-500.0,0.00012951,2]
[346566737,1735097448277,-2253.3,0.00012951,2]
[346566738,1735097448287,-500.0,0.00012951,2]
[346566739,1735097448296,-1481.28,0.00012951,2]
[346566740,1735097448305,-463.11947415,0.00012951,2]
[346566741,1735097448315,-1968.34,0.00012951,2]
[346566742,1735097448325,-500.0,0.00012951,2]
[346566743,1735097448334,-1181.32,0.00012951,2]
[346566744,1735097448344,-500.0,0.00012951,2]
[346566745,1735097448353,-501.44104386,0.00012951,2]
[346566746,1735097448366,-1192.37,0.00012951,2]
[346566747,1735097448375,-500.0,0.00012951,2]
[346566748,1735097448384,-509.79607825,0.00012951,2]
[346566750,1735097448394,-710.2,0.00012951,2]
[346566751,1735097448403,-500.0,0.00012951,2]
[346566753,1735097448413,-500.0,0.00012951,2]
[346566755,1735097448422,-500.0,0.00012951,2]
[346566757,1735097448432,-500.0,0.00012951,2]
[346566759,1735097448441,-1840.94,0.00012951,2]
[346566761,1735097448452,-500.0,0.00012951,2]
[346566763,1735097448461,-500.0,0.00012951,2]
[346566765,1735097448470,-905.0,0.00012951,2]
[346566767,1735097448479,-500.0,0.00012951,2]
[346566769,1735097448489,-500.0,0.00012951,2]
[346566771,1735097448499,-806.5,0.00012951,2]
[346566773,1735097448508,-500.0,0.00012951,2]
[346566775,1735097448518,-213.35595108,0.00012951,2]
[346566777,1735097448527,-500.0,0.00012951,2]
[346566779,1735097448537,-500.0,0.00012951,2]
[346566781,1735097448546,-500.0,0.00012951,2]
[346566783,1735097448556,-500.0,0.00012951,2]
[346566785,1735097448566,-2629.83,0.00012951,2]
[346566787,1735097448575,-500.0,0.00012951,2]
[346566789,1735097448585,-500.0,0.00012951,2]
[346566791,1735097448594,-258.03582132,0.00012951,2]
[346566793,1735097448604,-500.0,0.00012951,2]
[346566795,1735097448613,-197.23568133,0.00012951,2]
[346566797,1735097448623,-2205.99,0.00012951,2]
[346566799,1735097448632,-500.0,0.00012951,2]
[346566801,1735097448642,-655.92,0.00012951,2]
[346566803,1735097448651,-500.0,0.00012951,2]
[346566805,1735097448660,-505.16136814,0.00012951,2]
[346566807,1735097448670,-500.0,0.00012951,2]
[346566809,1735097448679,-1315.57,0.00012951,2]
[346566810,1735097448688,-500.0,0.00012951,2]
[346566812,1735097448698,-500.0,0.00012951,2]
[346566815,1735097448708,-500.0,0.00012951,2]
[346566817,1735097448717,-500.0,0.00012951,2]
[346566819,1735097448726,-2271.95,0.00012951,2]
[346566821,1735097448736,-654.71,0.00012951,2]
[346566823,1735097448745,-827.22,0.00012951,2]
[346566825,1735097448755,-500.0,0.00012951,2]
[346566826,1735097448765,-536.49,0.00012951,2]
[346566829,1735097448781,-500.0,0.00012951,2]
[346566831,1735097448790,-422.02926292,0.00012951,2]
[346566833,1735097448800,-500.0,0.00012951,2]
[346566835,1735097448809,-651.91,0.00012951,2]
[346566837,1735097448820,-1198.68,0.00012951,2]
[346566839,1735097448833,-500.0,0.00012951,2]
[346566841,1735097448843,-500.0,0.00012951,2]
[346566843,1735097448852,-747.39,0.00012951,2]
[346566845,1735097448863,-500.0,0.00012951,2]
[346566847,1735097448873,-500.0,0.00012951,2]
[346566849,1735097448882,-753.27,0.00012951,2]
[346566851,1735097448891,-562.72,0.00012951,2]
[346566853,1735097448901,-500.0,0.00012951,2]
[346566854,1735097448911,-500.0,0.00012951,2]
[346566856,1735097448920,-500.0,0.00012951,2]
[346566859,1735097448930,-343.59339134,0.00012951,2]
[346566860,1735097448940,-855.44,0.00012951,2]
[346566862,1735097448949,-500.0,0.00012951,2]
[346566864,1735097448959,-1089.37,0.00012951,2]
[346566866,1735097448968,-500.0,0.00012951,2]
[346566869,1735097448978,-1607.89,0.00012951,2]
[346566870,1735097448987,-1760.54,0.00012951,2]
[346566872,1735097448996,-1628.24,0.00012951,2]
[346566875,1735097449007,-500.0,0.00012951,2]
[346566877,1735097449017,-1706.29,0.00012951,2]
[346566879,1735097449028,-1613.09,0.00012951,2]
[346566881,1735097449038,-1384.3,0.00012951,2]
[346566883,1735097449048,-551.38,0.00012951,2]
[346566885,1735097449058,-3279.13,0.00012951,2]
[346566887,1735097449068,-500.0,0.00012951,2]
[346566889,1735097449077,-1166.6,0.00012951,2]
[346566891,1735097449087,-500.0,0.00012951,2]
[346566893,1735097449096,-1037.49,0.00012951,2]
[346566895,1735097449106,-3405.34,0.00012951,2]
[346566897,1735097449115,-808.06,0.00012951,2]
[346566899,1735097449123,-771.84,0.00012951,2]
[346566901,1735097449132,-33702.28,0.00012951,2]
[346566903,1735097449142,-2073.02,0.00012951,2]
[346566905,1735097449150,-500.0,0.00012951,2]
[346566907,1735097449160,-626.26,0.00012951,2]
[346566909,1735097449169,-837.97,0.00012951,2]
[346566911,1735097449178,-505.67748538,0.00012951,2]
[346566913,1735097449187,-500.0,0.00012951,2]
[346566939,1735097449197,-500.0,0.00012951,2]
[346566942,1735097449445,-500.0,0.00012951,2]
[346566944,1735097449454,-500.0,0.00012951,2]
[346566946,1735097449464,-3516.86,0.00012951,2]
[346566948,1735097449473,-789.07,0.00012951,2]
[346566950,1735097449483,-500.0,0.00012951,2]
[346566952,1735097449492,-500.0,0.00012951,2]
[346566954,1735097449502,-1212.208116,0.00012951,2]
[346566956,1735097449511,-1212.208116,0.00012951,2]
[346566958,1735097449521,-604.07,0.00012951,2]
[346566960,1735097449531,-1212.208116,0.00012951,2]
[346566961,1735097449541,-1212.208116,0.00012951,2]
[346566963,1735097449551,-1212.208116,0.00012951,2]
[346566965,1735097449561,-1212.208116,0.00012951,2]
[346566967,1735097449571,-1212.208116,0.00012951,2]
[346566969,1735097449580,-1212.208116,0.00012951,2]
[346566971,1735097449590,-984.75122454,0.00012951,2]
[346568874,1735098632671,-596.66645394,9.813e-05,2]
[346568875,1735098632683,-93.27354606,9.813e-05,2]
[346568876,1735098632692,-2454.61760798,9.987e-05,2]
[346568877,1735098632703,-201.91,0.00010087,2]
[346568878,1735098632712,-201.71,0.00010087,2]
[346568879,1735098632721,-202.92,0.00010087,2]
[346568880,1735098632731,-202.74,0.00010087,2]
[346568881,1735098632740,-201.8,0.00010087,2]
[346568882,1735098632749,-150.33572725,0.00010087,2]
[346568883,1735098632761,-53.01427275,0.00010087,2]
[346568884,1735098632771,-202.45,0.00010087,2]
[346568885,1735098632780,-150.0,0.0001011,2]
[346568886,1735098632790,-411.37,0.00010137,2]
[346568887,1735098632802,-687.32,0.00011776,2]
[346568888,1735098632811,-165.27,0.00011809,2]
[346568889,1735098632821,-250.0,0.00011827,2]
[346568890,1735098632831,-250.0,0.00011866,2]
[346568891,1735098632841,-199.31,0.00011873,2]
[346568892,1735098632850,-238.64944588,0.00011873,2]
[346568893,1735098632963,-378.98345466,0.00011873,2]
[346568894,1735098632975,-382.36709946,0.00011873,2]
[346568895,1735098632985,-203.06,0.00012015,2]
[346568896,1735098632994,-389.12,0.00012015,2]
[346568897,1735098633005,-689.94,0.00012077,2]
[346568898,1735098633014,-340.007,0.0001231,2]
[346568899,1735098633023,-2056.07,0.00012329,2]
[346568900,1735098633033,-153.0,0.00012781,2]
[346568901,1735098633042,-153.0,0.00012781,2]
[346568902,1735098633052,-4366.9373,0.00012814,2]
[346568903,1735098633062,-507.8013,0.00012814,2]
[346568904,1735098633071,-516.534,0.000129,2]
[346568905,1735098633081,-1133.19,0.0001291,3]
[346568906,1735098633091,-3023.32,0.00012911,2]
[346568907,1735098633101,-2950.79,0.00012911,2]
[346568908,1735098633112,-2073.44,0.00012911,2]
[346568909,1735098633122,-3027.51,0.00012911,2]
[346568910,1735098633132,-500.0,0.00012911,2]
[346568911,1735098633142,-1040.13,0.00012911,2]
[346568912,1735098633153,-7383.42,0.00012911,2]
[346568913,1735098633163,-513.74394941,0.00012911,2]
[346568914,1735098633175,-6944.44605059,0.00012911,2]
[346568915,1735098633184,-500.0,0.00012911,2]
[346568916,1735098633194,-1528.43,0.00012911,2]
[346568917,1735098633204,-4823.89,0.00012911,2]
[346568918,1735098633213,-2430.22365061,0.00012911,2]
[346568960,1735098638412,-21574.23634939,0.00012911,2]
[346568961,1735098638425,-5025.13,0.00012911,2]
[346568962,1735098638435,-7062.84,0.00012911,2]
[346568964,1735098638444,-5404.21,0.00012911,2]
[346568966,1735098638454,-9499.77,0.00012911,2]
[346568967,1735098638463,-3137.36,0.00012911,2]
[346568968,1735098638472,-3413.99,0.00012911,2]
[346568969,1735098638483,-1064.73,0.00012911,2]
[346568970,1735098638492,-1045.8,0.00012911,2]
[346568971,1735098638503,-9670.94,0.00012911,2]
[346568972,1735098638512,-2770.04,0.00012911,2]
[346568973,1735098638521,-2600.65,0.00012911,2]
[346568974,1735098638530,-735.49,0.00012911,2]
[346568975,1735098638539,-500.0,0.00012912,2]
[346568976,1735098638549,-816.4,0.00012912,2]
[346568977,1735098638559,-500.0,0.00012912,2]
[346568978,1735098638569,-1187.72,0.00012912,2]
[346568979,1735098638579,-689.84,0.00012912,2]
[346568980,1735098638588,-500.0,0.00012912,2]
[346568981,1735098638598,-611.0,0.00012912,2]
[346568982,1735098638607,-500.0,0.00012912,2]
[346568983,1735098638616,-1212.42,0.00012912,2]
[346568984,1735098638625,-500.0,0.00012912,2]
[346568985,1735098638635,-916.57,0.00012912,2]
[346568986,1735098638644,-500.0,0.00012912,2]
[346568987,1735098638654,-500.0,0.00012912,2]
[346568988,1735098638663,-500.0,0.00012912,2]
[346568989,1735098638671,-500.0,0.00012912,2]
[346568990,1735098638681,-500.0,0.00012912,2]
[346568991,1735098638690,-500.0,0.00012912,2]
[346568992,1735098638700,-901.71,0.00012912,2]
[346568993,1735098638709,-500.0,0.00012912,2]
[346568994,1735098638718,-864.44,0.00012912,2]
[346568995,1735098638727,-500.0,0.00012912,2]
[346568996,1735098638737,-500.0,0.00012912,2]
[346568997,1735098638747,-500.0,0.00012912,2]
[346568998,1735098638757,-500.0,0.00012912,2]
[346568999,1735098638768,-4465.14,0.00012912,2]
[346569000,1735098638777,-711.44,0.00012912,2]
[346569001,1735098638787,-1058.17,0.00012912,2]
[346569002,1735098638796,-500.0,0.00012912,2]
[346569003,1735098638806,-1104.07,0.00012912,2]
[346569004,1735098638816,-1208.02,0.00012912,2]